Workbook

Sheet Лист2
T1: Приложение № 12
T2: к постановлению администрации
T3: города Усолье - Сибирское
T4: от 15.12.2025 № 2331-па
B6: Минимально допустимые плановые значения показателей надежности, качества и энергетической эффективности объектов,
B7: которые должны быть достигнуты в результате реализации Концессионного соглашения в сфере водоснабжения
B9: Наименование показателей | C9: Ед.изм. | D9: Предыдущий период | G9: Период действия концессионного соглашения
B10: Показатели качества
B11: Доля проб питьевой воды, подаваемой с источников водоснабжения, водопроводных станций или иных объектов централизованной системы водоснабжения в распределительную водопроводную сеть, не соответствующих установленным требованиям, в общем объеме проб, отобранных по результатам производственного контроля качества питьевой воды (%) | C11: % | D11: 2020 | E11: =D11+1 -> 2021 | F11: =E11+1 -> 2022 | G11: 2026 | H11: =G11+1 -> 2027 | I11: 2028 | J11: 2029 | K11: 2030 | L11: 2031 | M11: 2032 | N11: 2033 | O11: 2034 | P11: 2035 | Q11: 2036 | R11: =Q11+1 -> 2037 | S11: =R11+1 -> 2038 | T11: =S11+1 -> 2039
G12: 0 | H12: 0 | I12: 0 | J12: 0 | K12: 0 | L12: 0 | M12: 0 | N12: 0 | O12: 0 | P12: 0 | Q12: 0 | R12: 0 | S12: 0 | T12: 0
G13: =T11+1 -> 2040 | H13: =G13+1 -> 2041 | I13: =H13+1 -> 2042 | J13: 2043 | K13: 2044 | L13: 2045 | M13: 2046 | N13: 2047 | O13: 2048 | P13: 2049 | Q13: 2050 | R13: =Q13+1 -> 2051 | S13: =R13+1 -> 2052 | T13: =S13+1 -> 2053
G14: 0 | H14: 0 | I14: 0 | J14: 0 | K14: 0 | L14: 0 | M14: 0 | N14: 0 | O14: 0 | P14: 0 | Q14: 0 | R14: 0 | S14: 0
B15: Доля проб питьевой воды в распределительной водопроводной сети, не соответствующих установленным требованиям, в общем объеме проб, отобранных по результатам производственного контроля качества питьевой воды (%). | C15: % | D15: 2020 | E15: =D15+1 -> 2021 | F15: =E15+1 -> 2022 | G15: 2026 | H15: =G15+1 -> 2027 | I15: =H15+1 -> 2028 | J15: =I15+1 -> 2029 | K15: =J15+1 -> 2030 | L15: =K15+1 -> 2031 | M15: =L15+1 -> 2032 | N15: =M15+1 -> 2033 | O15: =N15+1 -> 2034 | P15: =O15+1 -> 2035 | Q15: =P15+1 -> 2036 | R15: =Q15+1 -> 2037 | S15: 2038 | T15: 2039
G16: 0 | H16: 0 | I16: 0 | J16: 0 | K16: 0 | L16: 0 | M16: 0 | N16: 0 | O16: 0 | P16: 0 | Q16: 0 | R16: 0 | S16: 0 | T16: 0
G17: =T15+1 -> 2040 | H17: =G17+1 -> 2041 | I17: =H17+1 -> 2042 | J17: =I17+1 -> 2043 | K17: =J17+1 -> 2044 | L17: =K17+1 -> 2045 | M17: =L17+1 -> 2046 | N17: =M17+1 -> 2047 | O17: =N17+1 -> 2048 | P17: =O17+1 -> 2049 | Q17: 2050 | R17: =Q17+1 -> 2051 | S17: =R17+1 -> 2052 | T17: =S17+1 -> 2053
G18: 0 | H18: 0 | I18: 0 | J18: 0 | K18: 0 | L18: 0 | M18: 0 | N18: 0 | O18: 0 | P18: 0 | Q18: 0 | R18: 0 | S18: 0
B19: Показатели надежности и бесперебойности водоснабжения и водоотведения
B20: Количество перерывов в подаче воды, зафиксированных в местах исполнения обязательств организацией, осуществляющей холодное водоснабжение, по подаче холодной воды, возникших в результате аварий, повреждений и иных технологических нарушений на объектах централизованной системы холодного водоснабжения, принадлежащих организации, осуществляющей холодное водоснабжение, в расчете на протяженность водопроводной сети в год (ед./км). | C20: ед./км | D20: 2020 | E20: =D20+1 -> 2021 | F20: =E20+1 -> 2022 | G20: =G11 -> 2026 | H20: =H11 -> 2027 | I20: 2028 | J20: 2029 | K20: 2030 | L20: 2031 | M20: =M11 -> 2032 | N20: 2033 | O20: 2034 | P20: 2035 | Q20: 2036 | R20: 2037 | S20: 2038 | T20: 2039
G21: =26/155.97 -> 0.167 | H21: =(26-0.0562)/155.97 -> 0.166 | I21: =(26-0.0562*2)/155.97 -> 0.166 | J21: =(26-0.0562*3)/155.97 -> 0.166 | K21: =(26-0.0562*4)/155.97 -> 0.165 | L21: =(26-0.0562*5)/155.97 -> 0.165 | M21: =(26-0.0562*6)/155.97 -> 0.165 | N21: =(26-0.0562*7)/155.97 -> 0.164 | O21: =(26-0.0562*8)/155.97 -> 0.164 | P21: =(26-0.0562*9)/155.97 -> 0.163 | Q21: =(26-0.0562*10)/155.97 -> 0.163 | R21: =(26-0.0562*11)/155.97 -> 0.163 | S21: =(26-0.0562*12)/155.97 -> 0.162 | T21: =(26-0.0562*13)/155.97 -> 0.162
G22: =G13 -> 2040 | H22: =H13 -> 2041 | I22: 2042 | J22: 2043 | K22: 2044 | L22: 2045 | M22: 2046 | N22: 2047 | O22: 2048 | P22: 2049 | Q22: 2050 | R22: 2051 | S22: 2052 | T22: 2053
G23: =(26-0.0562*14)/155.97 -> 0.162 | H23: =(26-0.0562*15)/155.97 -> 0.161 | I23: =(26-0.0562*16)/155.97 -> 0.161 | J23: =(26-0.0562*17)/155.97 -> 0.161 | K23: =(26-0.0562*18)/155.97 -> 0.160 | L23: =(26-0.0562*19)/155.97 -> 0.160 | M23: =(26-0.0562*20)/155.97 -> 0.159 | N23: =(26-0.0562*21)/155.97 -> 0.159 | O23: =(26-0.0562*22)/155.97 -> 0.159 | P23: =(26-0.0562*23)/155.97 -> 0.158 | Q23: =(26-0.0562*24)/155.97 -> 0.158 | R23: =(26-0.0562*25)/155.97 -> 0.158 | S23: =(26-0.0562*26)/155.97 -> 0.157
B24: Показателями энергетической эффективности
B25: Доля потерь питьевой воды в централизованных системах водоснабжения при транспортировке в общем объеме воды, поданной в водопроводную сеть (в процентах) | C25: % | D25: 2020 | E25: =D25+1 -> 2021 | F25: =E25+1 -> 2022 | G25: =G11 -> 2026 | H25: =H11 -> 2027 | I25: 2028 | J25: 2029 | K25: 2030 | L25: 2031 | M25: 2032 | N25: 2033 | O25: 2034 | P25: 2035 | Q25: 2036 | R25: 2037 | S25: 2038 | T25: 2039
G26: 17.15 | H26: =G26-0.0371 -> 17.11 | I26: 17.08 | J26: 17.04 | K26: 17.00 | L26: 16.96 | M26: 16.93 | N26: 16.89 | O26: 16.85 | P26: 16.82 | Q26: 16.78 | R26: 16.74 | S26: 16.70 | T26: 16.67
G27: =T25+1 -> 2040 | H27: =G27+1 -> 2041 | I27: =H27+1 -> 2042 | J27: 2043 | K27: 2044 | L27: 2045 | M27: 2046 | N27: 2047 | O27: 2048 | P27: 2049 | Q27: 2050 | R27: =Q27+1 -> 2051 | S27: =R27+1 -> 2052 | T27: =S27+1 -> 2053
G28: =T26-0.0371 -> 16.63 | H28: =G28-0.0371 -> 16.59 | I28: 16.56 | J28: 16.52 | K28: 16.48 | L28: 16.45 | M28: 16.41 | N28: 16.37 | O28: 16.33 | P28: 16.30 | Q28: 16.26 | R28: 16.22 | S28: 16.19
B29: Доля потерь технической воды в централизованных системах водоснабжения при транспортировке в общем объеме воды, поданной в водопроводную сеть (в процентах) | C29: % | D29: 2020 | E29: =D29+1 -> 2021 | F29: =E29+1 -> 2022 | G29: =G25 -> 2026 | H29: =H25 -> 2027 | I29: 2028 | J29: 2029 | K29: 2030 | L29: 2031 | M29: 2032 | N29: 2033 | O29: 2034 | P29: 2035 | Q29: 2036 | R29: 2037 | S29: 2038 | T29: 2039
G30: 10.82 | H30: 10.82 | I30: 10.82 | J30: 10.82 | K30: 10.82 | L30: 10.82 | M30: 10.82 | N30: 10.82 | O30: 10.82 | P30: 10.82 | Q30: 10.82 | R30: 10.82 | S30: 10.82 | T30: 10.82
G31: =T29+1 -> 2040 | H31: =G31+1 -> 2041 | I31: =H31+1 -> 2042 | J31: =I31+1 -> 2043 | K31: =J31+1 -> 2044 | L31: =K31+1 -> 2045 | M31: =L31+1 -> 2046 | N31: =M31+1 -> 2047 | O31: =N31+1 -> 2048 | P31: =O31+1 -> 2049 | Q31: 2050 | R31: =Q31+1 -> 2051 | S31: =R31+1 -> 2052 | T31: =S31+1 -> 2053
G32: 10.82 | H32: 10.82 | I32: 10.82 | J32: 10.82 | K32: 10.82 | L32: 10.82 | M32: 10.82 | N32: 10.82 | O32: 10.82 | P32: 10.82 | Q32: 10.82 | R32: 10.82 | S32: 10.82
B33: Удельный расход электрической энергии, потребляемой в процессе подъема и транспортировки питьевой воды, на единицу объема воды, отпускаемой в сеть (кВт*ч/куб. м) | C33: кВтч/м3 | D33: 2020 | E33: =D33+1 -> 2021 | F33: =E33+1 -> 2022 | G33: =G29 -> 2026 | H33: =H29 -> 2027 | I33: 2028 | J33: 2029 | K33: 2030 | L33: 2031 | M33: 2032 | N33: 2033 | O33: 2034 | P33: 2035 | Q33: 2036 | R33: 2037 | S33: 2038 | T33: 2039
G34: 0.70 | H34: 0.70 | I34: 0.70 | J34: 0.70 | K34: 0.70 | L34: 0.70 | M34: 0.70 | N34: 0.70 | O34: 0.70 | P34: 0.70 | Q34: 0.70 | R34: 0.70 | S34: 0.70 | T34: 0.70
G35: =T33+1 -> 2040 | H35: =G35+1 -> 2041 | I35: =H35+1 -> 2042 | J35: 2043 | K35: 2044 | L35: 2045 | M35: 2046 | N35: 2047 | O35: 2048 | P35: 2049 | Q35: 2050 | R35: =Q35+1 -> 2051 | S35: =R35+1 -> 2052 | T35: =S35+1 -> 2053
G36: 0.70 | H36: 0.70 | I36: 0.70 | J36: 0.70 | K36: 0.70 | L36: 0.70 | M36: 0.70 | N36: 0.70 | O36: 0.70 | P36: 0.70 | Q36: 0.70 | R36: 0.70 | S36: 0.70
B37: Удельный расход электрической энергии, потребляемой в процессе подъема и транспортировки технической воды, на единицу объема воды, отпускаемой в сеть (кВт*ч/куб. м) вода | C37: кВтч/м3 | D37: 2020 | E37: =D37+1 -> 2021 | F37: =E37+1 -> 2022 | G37: =G33 -> 2026 | H37: =H33 -> 2027 | I37: 2028 | J37: 2029 | K37: 2030 | L37: 2031 | M37: 2032 | N37: 2033 | O37: 2034 | P37: 2035 | Q37: 2036 | R37: 2037 | S37: 2038 | T37: 2039
G38: 0.50 | H38: 0.50 | I38: 0.50 | J38: 0.50 | K38: 0.50 | L38: 0.50 | M38: 0.50 | N38: 0.50 | O38: 0.50 | P38: 0.50 | Q38: 0.50 | R38: 0.50 | S38: 0.50 | T38: 0.50
G39: =T37+1 -> 2040 | H39: =G39+1 -> 2041 | I39: =H39+1 -> 2042 | J39: 2043 | K39: 2044 | L39: 2045 | M39: 2046 | N39: 2047 | O39: 2048 | P39: 2049 | Q39: 2050 | R39: =Q39+1 -> 2051 | S39: =R39+1 -> 2052 | T39: =S39+1 -> 2053
G40: 0.50 | H40: 0.50 | I40: 0.50 | J40: 0.50 | K40: 0.50 | L40: 0.50 | M40: 0.50 | N40: 0.50 | O40: 0.50 | P40: 0.50 | Q40: 0.50 | R40: 0.50 | S40: 0.50
B43: Мэр города М.В. Торопкин
T50: Приложение № 11
T51: к постановлению администрации
T52: города Усолье - Сибирское
T53: от 15.12.2025 № 2331-па
B55: Минимально допустимые плановые значения показателей надежности, качества и энергетической эффективности объектов,
B56: которые должны быть достигнуты в результате реализации Концессионного соглашения в сфере водоотведения
B58: Таблица 3.2. В сфере водоотведения
B59: Наименование показателей | C59: Ед.изм. | D59: Предыдущий период | G59: Период действия концессионного соглашения
B60: Показатели качества
B61: Доля сточных вод, не подвергающихся очистке, в общем объеме сточных вод, сбрасываемых в централизованные общесплавные или бытовые системы водоотведения (%) | C61: % | D61: 2020 | E61: =D61+1 -> 2021 | F61: =E61+1 -> 2022 | G61: =G37 -> 2026 | H61: 2027 | I61: 2028 | J61: 2029 | K61: 2030 | L61: 2031 | M61: 2032 | N61: 2033 | O61: 2034 | P61: 2035 | Q61: 2036 | R61: 2037 | S61: 2038 | T61: 2039
G62: - | H62: - | I62: - | J62: - | K62: - | L62: - | M62: - | N62: - | O62: - | P62: - | Q62: - | R62: - | S62: - | T62: -
G63: =T61+1 -> 2040 | H63: =G63+1 -> 2041 | I63: =H63+1 -> 2042 | J63: =I63+1 -> 2043 | K63: =J63+1 -> 2044 | L63: =K63+1 -> 2045 | M63: =L63+1 -> 2046 | N63: =M63+1 -> 2047 | O63: =N63+1 -> 2048 | P63: =O63+1 -> 2049 | Q63: 2050 | R63: =Q63+1 -> 2051 | S63: =R63+1 -> 2052 | T63: =S63+1 -> 2053
G64: - | H64: - | I64: - | J64: - | K64: - | L64: - | M64: - | N64: - | O64: - | P64: - | Q64: - | R64: - | S64: -
B65: Доля поверхностных сточных вод, не подвергающихся очистке, в общем объеме поверхностных сточных вод, принимаемых в централизованную ливневую систему водоотведения (%) | C65: % | D65: 2020 | E65: =D65+1 -> 2021 | F65: =E65+1 -> 2022 | G65: =G61 -> 2026 | H65: =H61 -> 2027 | I65: 2028 | J65: 2029 | K65: 2030 | L65: 2031 | M65: 2032 | N65: 2033 | O65: 2034 | P65: 2035 | Q65: 2036 | R65: 2037 | S65: 2038 | T65: 2039
G66: - | H66: - | I66: - | J66: - | K66: - | L66: - | M66: - | N66: - | O66: - | P66: - | Q66: - | R66: - | S66: - | T66: -
G67: =T65+1 -> 2040 | H67: =G67+1 -> 2041 | I67: =H67+1 -> 2042 | J67: =I67+1 -> 2043 | K67: =J67+1 -> 2044 | L67: =K67+1 -> 2045 | M67: =L67+1 -> 2046 | N67: =M67+1 -> 2047 | O67: =N67+1 -> 2048 | P67: =O67+1 -> 2049 | Q67: 2050 | R67: =Q67+1 -> 2051 | S67: =R67+1 -> 2052 | T67: =S67+1 -> 2053
G68: - | H68: - | I68: - | J68: - | K68: - | L68: - | M68: - | N68: - | O68: - | P68: - | Q68: - | R68: - | S68: -
B69: Доля проб сточных вод, не соответствующих установленным нормативам допустимых сбросов, лимитам на сбросы, рассчитанная применительно к видам централизованных систем водоотведения раздельно для централизованной общесплавной (бытовой) и централизованной ливневой систем водоотведения (%) | C69: % | D69: 2020 | E69: =D69+1 -> 2021 | F69: =E69+1 -> 2022 | G69: =G65 -> 2026 | H69: =H65 -> 2027 | I69: 2028 | J69: 2029 | K69: 2030 | L69: 2031 | M69: 2032 | N69: 2033 | O69: 2034 | P69: 2035 | Q69: 2036 | R69: 2037 | S69: 2038 | T69: 2039
G70: - | H70: - | I70: - | J70: - | K70: - | L70: - | M70: - | N70: - | O70: - | P70: - | Q70: - | R70: - | S70: - | T70: -
G71: =T69+1 -> 2040 | H71: =G71+1 -> 2041 | I71: =H71+1 -> 2042 | J71: =I71+1 -> 2043 | K71: =J71+1 -> 2044 | L71: =K71+1 -> 2045 | M71: =L71+1 -> 2046 | N71: =M71+1 -> 2047 | O71: =N71+1 -> 2048 | P71: =O71+1 -> 2049 | Q71: 2050 | R71: =Q71+1 -> 2051 | S71: =R71+1 -> 2052 | T71: =S71+1 -> 2053
G72: - | H72: - | I72: - | J72: - | K72: - | L72: - | M72: - | N72: - | O72: - | P72: - | Q72: - | R72: - | S72: -
B73: Показатели надежности и бесперебойности водоснабжения и водоотведения
B74: Количество аварий и засоров на канализационных сетях в расчете на протяженность канализационных сетей (ед./км) | C74: ед./км | D74: 2020 | E74: =D74+1 -> 2021 | F74: =E74+1 -> 2022 | G74: =G69 -> 2026 | H74: =H69 -> 2027 | I74: 2028 | J74: 2029 | K74: 2030 | L74: 2031 | M74: 2032 | N74: 2033 | O74: 2034 | P74: 2035 | Q74: 2036 | R74: 2037 | S74: 2038 | T74: 2039
G75: =603/160.15 -> 3.765 | H75: =(603-1.1275)/160.15 -> 3.758 | I75: =(603-1.1275*2)/160.15 -> 3.751 | J75: =(603-1.1275*3)/160.15 -> 3.744 | K75: =(603-1.1275*4)/160.15 -> 3.737 | L75: =(603-1.1275*5)/160.15 -> 3.730 | M75: =(603-1.1275*6)/160.15 -> 3.723 | N75: =(603-1.1275*7)/160.15 -> 3.716 | O75: =(603-1.1275*8)/160.15 -> 3.709 | P75: =(603-1.1275*9)/160.15 -> 3.702 | Q75: =(603-1.1275*10)/160.15 -> 3.695 | R75: =(603-1.1275*11)/160.15 -> 3.688 | S75: =(603-1.1275*12)/160.15 -> 3.681 | T75: =(603-1.1275*13)/160.15 -> 3.674
G76: =T74+1 -> 2040 | H76: =G76+1 -> 2041 | I76: =H76+1 -> 2042 | J76: 2043 | K76: 2044 | L76: 2045 | M76: 2046 | N76: 2047 | O76: 2048 | P76: 2049 | Q76: 2050 | R76: =Q76+1 -> 2051 | S76: =R76+1 -> 2052 | T76: =S76+1 -> 2053
G77: =(603-1.1275*14)/160.15 -> 3.667 | H77: =(603-1.1275*15)/160.15 -> 3.660 | I77: =(603-1.1275*16)/160.15 -> 3.653 | J77: =(603-1.1275*17)/160.15 -> 3.646 | K77: =(603-1.1275*18)/160.15 -> 3.638 | L77: =(603-1.1275*19)/160.15 -> 3.631 | M77: =(603-1.1275*20)/160.15 -> 3.624 | N77: =(603-1.1275*21)/160.15 -> 3.617 | O77: =(603-1.1275*22)/160.15 -> 3.610 | P77: =(603-1.1275*23)/160.15 -> 3.603 | Q77: =(603-1.1275*24)/160.15 -> 3.596 | R77: =(603-1.1275*25)/160.15 -> 3.589 | S77: =(603-1.1275*26)/160.15 -> 3.582
B78: Показателями энергетической эффективности
B79: Удельный расход электрической энергии, потребляемой в технологическом процессе очистки и транспортировки сточных вод, на единицу объема сточных вод (кВт*ч/куб. м) | C79: кВтч/м3 | D79: 2020 | E79: =D79+1 -> 2021 | F79: =E79+1 -> 2022 | G79: =G74 -> 2026 | H79: =H74 -> 2027 | I79: 2028 | J79: 2029 | K79: 2030 | L79: 2031 | M79: 2032 | N79: 2033 | O79: 2034 | P79: 2035 | Q79: 2036 | R79: 2037 | S79: 2038 | T79: 2039
G80: 1.09 | H80: 1.09 | I80: 1.09 | J80: 1.09 | K80: 1.09 | L80: 1.09 | M80: 1.09 | N80: 1.09 | O80: 1.09 | P80: 1.09 | Q80: 1.09 | R80: 1.09 | S80: 1.09 | T80: 1.09
G81: =T79+1 -> 2040 | H81: =G81+1 -> 2041 | I81: =H81+1 -> 2042 | J81: =I81+1 -> 2043 | K81: =J81+1 -> 2044 | L81: =K81+1 -> 2045 | M81: =L81+1 -> 2046 | N81: =M81+1 -> 2047 | O81: =N81+1 -> 2048 | P81: =O81+1 -> 2049 | Q81: 2050 | R81: =Q81+1 -> 2051 | S81: =R81+1 -> 2052 | T81: =S81+1 -> 2053
G82: 1.09 | H82: 1.09 | I82: 1.09 | J82: 1.09 | K82: 1.09 | L82: 1.09 | M82: 1.09 | N82: 1.09 | O82: 1.09 | P82: 1.09 | Q82: 1.09 | R82: 1.09 | S82: 1.09
B85: Мэр города М.В. Торопкин
